[Event "1st SOA-GM Festival 2024"]
[Site "Bhubaneswar"]
[Date "2024.02.03"]
[Round "9.12"]
[White "Daaevik Wadhawan"]
[Black "Laxman, R.R."]
[Result "0-1"]
[ECO "D37"]
[WhiteElo "1997"]
[BlackElo "2338"]
[Annotator "ChessBase"]
[PlyCount "106"]
[EventDate "2024.02.01"]
[EventType "swiss"]
[EventCountry "IND"]
[SourceTitle "playchess.com"]
[Source "ChessBase"]
[SourceQuality "1"]
[TimeControl "5400+30"]

1. d4 {[%emt 0:00:45]} d5 {[%emt 0:00:16]} 2. c4 {[%emt 0:00:32]} e6 {[%emt 0:00:06]} 3. Nc3 {[%emt 0:01:12]} h6 {[%emt 0:00:13]} 4. Nf3 {[%emt 0:01:54]} Nf6 {[%emt 0:00:09]} 5. Bf4 {[%emt 0:02:41]} Bd6 {[%emt 0:00:14]} 6. Be5 {[%emt 0:04:52]} Bxe5 {[%emt 0:05:28]} 7. dxe5 {[%emt 0:01:06]} Ne4 {[%emt 0:00:02]} 8. Nxe4 {[%emt 0:12:22]} dxe4 {[%emt 0:00:05]} 9. Qxd8+ {[%emt 0:00:08]} Kxd8 {[%emt 0:00:02]} 10. Nd2 {[%emt 0:08:47]} Nc6 {[%emt 0:01:58]} 11. Nxe4 {[%emt 0:00:46]} Nxe5 {[%emt 0:00:05]} 12. e3 {[%emt 0:01:45]} Bd7 {[%emt 0:00:46]} 13. f3 {[%emt 0:02:08]} Bc6 {[%emt 0:00:29]} 14. O-O-O+ {[%emt 0:00:23]} Ke7 {[%emt 0:00:06]} 15. Nf2 {[%emt 0:01:08]} Nxf3 {[%emt 0:01:04]} 16. gxf3 {[%emt 0:00:25]} Bxf3 {[%emt 0:00:02]} 17. Rg1 {[%emt 0:01:58]} Bxd1 {[%emt 0:00:03]} 18. Kxd1 {[%emt 0:01:11]} g5 {[%emt 0:00:13]} 19. Bg2 {[%emt 0:00:50]} f5 {[%emt 0:00:26]} 20. Nd3 {[%emt 0:05:02]} c6 {[%emt 0:00:22]} 21. Ke2 {[%emt 0:03:27]} Rad8 {[%emt 0:00:16]} 22. Nc5 {[%emt 0:00:25]} b6 {[%emt 0:00:35]} 23. Nd3 {[%emt 0:00:32]} c5 {[%emt 0:00:17]} 24. b4 {[%emt 0:08:58]} cxb4 {[%emt 0:01:01]} 25. Nxb4 {[%emt 0:00:02]} Kf6 {[%emt 0:00:06]} 26. Nc6 {[%emt 0:02:31]} Rd7 {[%emt 0:00:05]} 27. e4 {[%emt 0:04:31]} Rc8 {[%emt 0:02:33]} 28. e5+ {[%emt 0:05:17]} Kf7 {[%emt 0:00:40]} 29. c5 {[%emt 0:11:24]} bxc5 {[%emt 0:00:22]} 30. Rc1 {[%emt 0:00:05]} h5 {[%emt 0:02:53]} 31. Rxc5 {[%emt 0:05:16]} Rdc7 {[%emt 0:00:03]} 32. a4 {[%emt 0:01:00]} a5 {[%emt 0:00:23]} 33. h4 {[%emt 0:00:43]} gxh4 {[%emt 0:00:17]} 34. Bf3 {[%emt 0:01:46]} Kg6 {[%emt 0:02:01]} 35. Rc1 {[%emt 0:01:11]} Kg5 {[%emt 0:01:49]} 36. Ke3 {[%emt 0:03:42]} f4+ {[%emt 0:00:17]} 37. Kf2 {[%emt 0:00:24]} h3 {[%emt 0:00:24]} 38. Be4 {[%emt 0:00:17]} Kh6 {[%emt 0:03:46]} 39. Rc3 {[%emt 0:02:12]} Rb8 {[%emt 0:02:28]} 40. Rxh3 {[%emt 0:01:35]} Rb2+ {[%emt 0:00:03]} 41. Kf1 {[%emt 0:00:16]} Kg5 {[%emt 0:01:41]} 42. Rd3 {[%emt 0:01:28]} Ra2 {[%emt 0:01:33]} 43. Rd4 {[%emt 0:00:59]} Rb7 {[%emt 1:16:18]} 44. Rd1 {[%emt 0:00:54]} Rbb2 {[%emt 0:00:00]} 45. Nd4 {[%emt 0:00:24]} Kg4 {[%emt 0:00:00]} 46. Bf3+ {[%emt 0:01:17]} Kg3 {[%emt 0:00:00]} 47. Bxh5 {[%emt 0:01:15]} Rh2 {[%emt 0:00:00]} 48. Rd3+ {[%emt 0:00:22]} Kh4 {[%emt 0:00:00]} 49. Be2 {[%emt 0:00:01]} Ra1+ {[%emt 0:00:00]} 50. Bd1 {[%emt 0:00:13]} Rh1+ {[%emt 0:00:00]} 51. Ke2 {[%emt 0:00:01]} Kg4 {[%emt 0:00:00]} 52. Nc2 {[%emt 0:01:16]} Rb1 {[%emt 0:00:00]} 53. Kd2+ {[%emt 0:00:33]} Rbxd1+ {[%emt 0:00:00]} 0-1

[Event "1st SOA-GM Festival 2024"]
[Site "Bhubaneswar"]
[Date "2024.02.03"]
[Round "9.13"]
[White "Goutham Krishna H"]
[Black "Dhananjay S"]
[Result "0-1"]
[ECO "E61"]
[WhiteElo "2288"]
[BlackElo "2151"]
[Annotator "ChessBase"]
[PlyCount "90"]
[EventDate "2024.02.01"]
[EventType "swiss"]
[EventCountry "IND"]
[SourceTitle "playchess.com"]
[Source "ChessBase"]
[SourceQuality "1"]
[TimeControl "5400+30"]

1. d4 {[%emt 0:00:11]} Nf6 {[%emt 0:00:09]} 2. Nf3 {[%emt 0:00:17]} g6 {[%emt 0:00:11]} 3. c4 {[%emt 0:00:10]} Bg7 {[%emt 0:00:05]} 4. Nc3 {[%emt 0:00:04]} d6 {[%emt 0:00:03]} 5. Bf4 {[%emt 0:01:11]} Bf5 {[%emt 0:01:22]} 6. e3 {[%emt 0:06:42]} Nh5 {[%emt 0:00:04]} 7. Bg5 {[%emt 0:01:14]} h6 {[%emt 0:00:05]} 8. Bh4 {[%emt 0:00:03]} g5 {[%emt 0:00:03]} 9. Bg3 {[%emt 0:00:47]} c5 {[%emt 0:02:44]} 10. Be2 {[%emt 0:03:55]} Nxg3 {[%emt 0:05:11]} 11. hxg3 {[%emt 0:00:10]} Qb6 {[%emt 0:02:07]} 12. O-O {[%emt 0:09:25]} Nc6 {[%emt 0:25:11]} 13. Qd2 {[%emt 0:17:41]} cxd4 {[%emt 0:02:58]} 14. Nd5 {[%emt 0:00:23]} Qd8 {[%emt 0:00:37]} 15. Nxd4 {[%emt 0:00:30]} Bd7 {[%emt 0:04:19]} 16. Rac1 {[%emt 0:01:45]} O-O {[%emt 0:00:06]} 17. Rfd1 {[%emt 0:00:25]} e6 {[%emt 0:08:53]} 18. Nc3 {[%emt 0:00:41]} Nxd4 {[%emt 0:00:03]} 19. exd4 {[%emt 0:00:06]} d5 {[%emt 0:07:42]} 20. c5 {[%emt 0:20:13]} a5 {[%emt 0:01:06]} 21. Bb5 {[%emt 0:06:49]} Bc6 {[%emt 0:00:22]} 22. Bxc6 {[%emt 0:02:46]} bxc6 {[%emt 0:00:30]} 23. Rb1 {[%emt 0:01:05]} e5 {[%emt 0:02:16]} 24. dxe5 {[%emt 0:00:05]} Bxe5 {[%emt 0:00:06]} 25. Ne2 {[%emt 0:01:56]} Qf6 {[%emt 0:01:25]} 26. b3 {[%emt 0:01:34]} Rfb8 {[%emt 0:01:32]} 27. Nc1 {[%emt 0:02:09]} Bc3 {[%emt 0:01:45]} 28. Qe2 {[%emt 0:00:19]} Re8 {[%emt 0:02:00]} 29. Qc2 {[%emt 0:00:49]} Re4 {[%emt 0:00:00]} 30. Ne2 {[%emt 0:00:00]} Bb4 {[%emt 0:00:00]} 31. Qb2 {[%emt 0:00:00]} Qxb2 {[%emt 0:00:00]} 32. Rxb2 {[%emt 0:00:00]} Rae8 {[%emt 0:09:21]} 33. Kf1 {[%emt 0:04:45]} Bxc5 {[%emt 0:01:12]} 34. Rc2 {[%emt 0:00:31]} Bb4 {[%emt 0:02:51]} 35. f3 {[%emt 0:00:09]} Re3 {[%emt 0:00:39]} 36. Kf2 {[%emt 0:01:12]} h5 {[%emt 0:00:57]} 37. Rh1 {[%emt 0:04:56]} c5 {[%emt 0:00:00]} 38. Nc1 {[%emt 0:03:22]} d4 {[%emt 0:01:33]} 39. Re2 {[%emt 0:00:11]} Rxe2+ {[%emt 0:01:44]} 40. Nxe2 {[%emt 0:00:01]} d3 {[%emt 0:00:06]} 41. Nc1 {[%emt 0:00:03]} c4 {[%emt 0:00:08]} 42. g4 {[%emt 0:00:22]} Bc5+ {[%emt 0:00:19]} 43. Kg3 {[%emt 0:00:01]} h4+ {[%emt 0:00:05]} 44. Kh2 {[%emt 0:00:06]} d2 {[%emt 0:00:06]} 45. bxc4 {[%emt 0:00:16]} Re1 {[%emt 0:00:09]} 0-1

[Event "1st SOA-GM Festival 2024"]
[Site "Bhubaneswar"]
[Date "2024.02.03"]
[Round "9.14"]
[White "Frayna, Janelle Mae"]
[Black "John Veny Akkarakaran"]
[Result "1/2-1/2"]
[ECO "E07"]
[WhiteElo "2197"]
[BlackElo "2112"]
[Annotator "RC"]
[PlyCount "31"]
[EventDate "2024.02.01"]
[EventType "swiss"]
[EventCountry "IND"]
[SourceTitle "playchess.com"]
[Source "ChessBase"]
[SourceQuality "1"]
[TimeControl "5400+30"]

1. Nf3 {[%emt 0:00:15]} Nf6 {[%emt 0:00:12]} 2. c4 {[%emt 0:00:18]} e6 {[%emt 0:00:21]} 3. g3 {[%emt 0:00:04]} d5 {[%emt 0:00:30]} 4. Bg2 {[%emt 0:00:53]} Be7 {[%emt 0:00:27]} 5. O-O {[%emt 0:00:11]} O-O {[%emt 0:00:36]} 6. d4 {[%emt 0:01:32]} c6 {[%emt 0:00:52]} 7. b3 {[%emt 0:00:31]} b6 {[%emt 0:01:04]} 8. Bb2 {[%emt 0:01:00]} Nbd7 {[%emt 0:03:33]} 9. Nc3 {[%emt 0:01:05]} Ba6 {[%emt 0:04:01]} 10. Qd3 {[%emt 0:00:50]} Qc8 {[%emt 0:02:08]} 11. Rac1 {[%emt 0:03:12]} Qb7 {[%emt 0:06:04]} 12. a4 {[%emt 0:03:56]} Bb4 {[%emt 0:10:06]} 13. Na2 {[%emt 0:01:27]} Be7 {[%emt 0:03:53]} 14. Nc3 {[%emt 0:00:08]} Bb4 {[%emt 0:01:39]} 15. Na2 {[%emt 0:00:02]} Be7 {[%emt 0:01:40]} 16. Nc3 {[%emt 1:23:06]} 1/2-1/2

[Event "1st SOA-GM Festival 2024"]
[Site "Bhubaneswar"]
[Date "2024.02.03"]
[Round "9.15"]
[White "Audi Ameya"]
[Black "Mahindrakar Indrajeet"]
[Result "1-0"]
[ECO "B33"]
[WhiteElo "2385"]
[BlackElo "2039"]
[Annotator "RC"]
[PlyCount "67"]
[EventDate "2024.02.01"]
[EventType "swiss"]
[EventCountry "IND"]
[SourceTitle "playchess.com"]
[Source "ChessBase"]
[SourceQuality "1"]
[TimeControl "5400+30"]

1. e4 {[%emt 1:31:00]} c5 {[%emt 0:03:32]} 2. Nf3 {[%emt 0:00:00]} Nc6 {[%emt 0:00:24]} 3. d4 {[%emt 0:00:00]} cxd4 {[%emt 0:00:16]} 4. Nxd4 {[%emt 0:00:00]} Nf6 {[%emt 0:00:29]} 5. Nc3 {[%emt 0:00:00]} e5 {[%emt 0:00:40]} 6. Ndb5 {[%emt 0:00:00]} d6 {[%emt 0:00:09]} 7. Bg5 {[%emt 0:00:00]} a6 {[%emt 0:00:28]} 8. Na3 {[%emt 0:00:00]} b5 {[%emt 0:00:08]} 9. Nd5 {[%emt 0:00:00]} Be7 {[%emt 0:00:41]} 10. Bxf6 {[%emt 0:00:00]} Bxf6 {[%emt 0:00:24]} 11. c3 {[%emt 0:00:00]} O-O {[%emt 0:01:49]} 12. Nc2 {[%emt 0:00:00]} Bg5 {[%emt 0:01:31]} 13. a4 {[%emt 0:00:00]} bxa4 {[%emt 0:02:24]} 14. Rxa4 {[%emt 0:00:00]} a5 {[%emt 0:07:53]} 15. Bc4 {[%emt 0:00:00]} Kh8 {[%emt 0:03:15]} 16. Nce3 {[%emt 0:00:00]} Rb8 {[%emt 0:01:09]} 17. b3 {[%emt 0:00:00]} Bd7 {[%emt 0:01:48]} 18. Ra2 {[%emt 0:00:00]} g6 {[%emt 0:04:04]} 19. h4 {[%emt 0:00:00]} Bxh4 {[%emt 0:25:42]} 20. g3 {[%emt 0:00:00]} Be7 {[%emt 0:00:07]} 21. f4 {[%emt 0:00:00]} Kg7 {[%emt 0:00:08]} 22. Nxe7 {[%emt 0:00:00]} Qxe7 {[%emt 0:03:24]} 23. Nd5 {[%emt 0:00:00]} Qd8 {[%emt 0:00:35]} 24. f5 {[%emt 0:00:00]} Qg5 {[%emt 0:04:41]} 25. f6+ {[%emt 0:00:00]} Kg8 {[%emt 0:00:59]} 26. Rah2 {[%emt 0:00:00]} h5 {[%emt 0:01:55]} 27. Be2 {[%emt 0:00:00]} Qxg3+ {[%emt 0:33:46]} 28. Kf1 {[%emt 0:00:00]} Be6 {[%emt 0:00:56]} 29. Bxh5 {[%emt 0:00:00]} Bxd5 {[%emt 0:01:05]} 30. Bf3 {[%emt 0:00:00]} Qxh2 {[%emt 0:00:32]} 31. Rxh2 {[%emt 0:00:00]} Bxb3 {[%emt 0:00:14]} 32. Qc1 {[%emt 0:00:00]} Bc4+ {[%emt 0:00:33]} 33. Kg1 {[%emt 0:00:00]} Bd3 {[%emt 0:00:43]} 34. Rh8+ {[%emt 0:00:00]} 1-0

[Event "1st SOA-GM Festival 2024"]
[Site "Bhubaneswar"]
[Date "2024.02.03"]
[Round "9.16"]
[White "Barath Kalyan M"]
[Black "Jaiveer Mahendru"]
[Result "0-1"]
[ECO "A01"]
[WhiteElo "2040"]
[BlackElo "2294"]
[Annotator "ChessBase"]
[PlyCount "82"]
[EventDate "2024.02.01"]
[EventType "swiss"]
[EventCountry "IND"]
[SourceTitle "playchess.com"]
[Source "ChessBase"]
[SourceQuality "1"]
[TimeControl "5400+30"]

1. b3 {[%emt 0:00:23]} e5 {[%emt 0:02:42]} 2. Bb2 {[%emt 0:00:09]} Nc6 {[%emt 0:00:03]} 3. c4 {[%emt 0:00:08]} Nge7 {[%emt 0:00:04]} 4. e3 {[%emt 0:00:14]} d5 {[%emt 0:00:04]} 5. cxd5 {[%emt 0:00:05]} Nxd5 {[%emt 0:00:05]} 6. a3 {[%emt 0:00:08]} Be6 {[%emt 0:00:06]} 7. Qc2 {[%emt 0:00:12]} Qd7 {[%emt 0:00:15]} 8. Nf3 {[%emt 0:00:07]} f6 {[%emt 0:00:03]} 9. b4 {[%emt 0:00:05]} O-O-O {[%emt 0:04:50]} 10. b5 {[%emt 0:00:09]} Na5 {[%emt 0:01:13]} 11. d4 {[%emt 0:00:08]} e4 {[%emt 0:00:08]} 12. Nfd2 {[%emt 0:00:06]} f5 {[%emt 0:00:04]} 13. Nc3 {[%emt 0:00:08]} Nb6 {[%emt 1:27:23]} 14. Be2 {[%emt 0:01:10]} Kb8 {[%emt 0:00:00]} 15. d5 {[%emt 0:06:34]} Bf7 {[%emt 0:00:00]} 16. Ncxe4 {[%emt 0:04:08]} Bxd5 {[%emt 0:00:00]} 17. Ng3 {[%emt 0:20:11]} f4 {[%emt 0:00:00]} 18. Nge4 {[%emt 0:03:42]} fxe3 {[%emt 0:00:00]} 19. fxe3 {[%emt 0:00:10]} Qe6 {[%emt 0:00:00]} 20. Rc1 {[%emt 0:15:57]} Rd7 {[%emt 0:00:00]} 21. O-O {[%emt 0:03:52]} Bd6 {[%emt 0:00:00]} 22. Bd4 {[%emt 0:02:28]} Nb3 {[%emt 0:00:00]} 23. Nxb3 {[%emt 0:00:23]} Bxe4 {[%emt 0:01:54]} 24. Bd3 {[%emt 0:12:50]} Bxd3 {[%emt 0:00:41]} 25. Qxd3 {[%emt 0:01:40]} Qh6 {[%emt 0:00:15]} 26. h3 {[%emt 0:00:25]} Bxa3 {[%emt 0:00:48]} 27. Rc2 {[%emt 0:02:59]} Bd6 {[%emt 0:02:07]} 28. Ra2 {[%emt 0:01:56]} Qg5 {[%emt 0:00:15]} 29. Rf3 {[%emt 0:03:37]} Be5 {[%emt 0:01:24]} 30. Nc5 {[%emt 0:01:08]} Rd5 {[%emt 0:00:31]} 31. Qa3 {[%emt 0:02:06]} a6 {[%emt 0:00:30]} 32. bxa6 {[%emt 0:01:14]} Rxd4 {[%emt 0:00:29]} 33. axb7 {[%emt 0:04:37]} Rd1+ {[%emt 0:00:26]} 34. Kf2 {[%emt 0:00:40]} Bg3+ {[%emt 0:00:35]} 35. Rxg3 {[%emt 0:01:28]} Rf8+ {[%emt 0:00:01]} 36. Ke2 {[%emt 0:04:20]} Re1+ {[%emt 0:00:01]} 37. Kd2 {[%emt 0:05:51]} Rd8+ {[%emt 0:00:53]} 38. Nd3 {[%emt 0:03:02]} Nc4+ {[%emt 0:00:23]} 39. Kc3 {[%emt 0:00:14]} Rxd3+ {[%emt 0:01:02]} 40. Kxd3 {[%emt 0:00:30]} Qd5+ {[%emt 0:00:02]} 41. Kc3 {[%emt 0:00:36]} Nxa3 {[%emt 0:00:06]} 0-1

[Event "1st SOA-GM Festival 2024"]
[Site "Bhubaneswar"]
[Date "2024.02.03"]
[Round "9.17"]
[White "Ajay Santhosh Parvathareddy"]
[Black "Roneet Das"]
[Result "1-0"]
[ECO "A47"]
[WhiteElo "2148"]
[BlackElo "2018"]
[Annotator "NA"]
[PlyCount "85"]
[EventDate "2024.02.01"]
[EventType "swiss"]
[EventCountry "IND"]
[SourceTitle "playchess.com"]
[Source "ChessBase"]
[SourceQuality "1"]
[TimeControl "5400+30"]

1. Nf3 {[%emt 0:00:01]} Nf6 {[%emt 0:00:44]} 2. d4 {[%emt 0:00:14]} e6 {[%emt 0:00:19]} 3. e3 {[%emt 0:00:05]} b6 {[%emt 0:00:13]} 4. b3 {[%emt 0:00:06]} Bb7 {[%emt 0:00:05]} 5. Bb2 {[%emt 0:00:05]} Be7 {[%emt 0:00:13]} 6. Be2 {[%emt 0:00:06] A47: 1 d4 Nf6 2 Nf3 b6: Torre, London and Colle Systems.} O-O {[%emt 0:00:08]} 7. O-O {[%emt 0:00:04]} c5 {[%emt 0:00:29]} 8. dxc5 {[%emt 0:00:05]} bxc5 {[%emt 0:00:16]} 9. c4 {[%emt 0:00:05]} d6 {[%emt 0:00:17]} 10. Nbd2 {[%emt 0:01:01]} Nbd7 {[%emt 0:00:37]} 11. Qc2 {[%emt 0:00:07]} Qc7 {[%emt 0:02:02]} 12. Rfd1 {[%emt 0:00:24]} Rfe8 {[%emt 0:01:06]} 13. Nf1 {[%emt 0:00:25]} Ne4 {[%emt 0:09:44]} 14. N3d2 {[%emt 0:06:10]} Bf6 {[%emt 0:10:18]} 15. Bxf6 {[%emt 0:17:04]} Nexf6 {[%emt 0:00:17]} 16. Bf3 {[%emt 0:00:30]} d5 {[%emt 0:00:23]} 17. cxd5 {[%emt 0:00:56]} exd5 {[%emt 0:00:11]} 18. g3 {[%emt 0:00:21]} Rac8 {[%emt 0:03:08]} 19. Rac1 {[%emt 0:05:26]} Qb6 {[%emt 0:00:22]} 20. Bg2 {[%emt 0:00:43]} Ne5 {[%emt 0:01:19]} 21. Nf3 {[%emt 0:01:58]} Ned7 {[%emt 0:05:21]} 22. N1d2 {[%emt 0:05:24]} h6 {[%emt 0:01:06]} 23. Nb1 {[%emt 0:03:48]} Ne4 {[%emt 0:12:44]} 24. Nfd2 $15 {[%emt 0:06:37]} Nxf2 {[%emt 0:17:44]} 25. Kxf2 {[%emt 0:03:45]} d4 {[%emt 0:00:03]} 26. Nc4 {[%emt 0:05:53]} Qf6+ {[%emt 0:10:48]} 27. Kg1 {[%emt 0:00:41]} Bxg2 {[%emt 0:02:10]} 28. Qxg2 {[%emt 0:00:26]} Nf8 {[%emt 0:03:04]} 29. Rf1 {[%emt 0:09:17]} Qg6 {[%emt 0:00:01]} 30. exd4 {[%emt 0:01:00]} cxd4 {[%emt 0:00:08]} 31. Nbd2 {[%emt 0:02:22]} Rcd8 {[%emt 0:00:34]} 32. Nf3 {[%emt 0:04:15]} f6 {[%emt 0:01:44]} 33. Rfd1 {[%emt 0:07:48]} d3 {[%emt 0:00:09]} 34. Rd2 {[%emt 0:00:30]} Nd7 {[%emt 0:01:37]} 35. Nb2 {[%emt 0:00:49]} Ne5 {[%emt 0:00:14]} 36. Rcd1 {[%emt 0:04:22]} Qg4 {[%emt 0:09:41]} 37. Nxe5 {[%emt 0:06:20]} Rxe5 {[%emt 0:00:23]} 38. h3 {[%emt 0:01:39]} Qh5 {[%emt 0:02:53]} 39. g4 {[%emt 0:00:21]} Qh4 {[%emt 0:00:31]} 40. Rxd3 {[%emt 0:09:17]} Rxd3 {[%emt 0:03:12]} 41. Nxd3 {[%emt 0:00:00]} Re3 {[%emt 0:00:16]} 42. Nf4 {[%emt 0:00:00]} Rg3 {[%emt 0:00:36]} 43. Rd8+ {[%emt 0:00:00]} 1-0

[Event "1st SOA-GM Festival 2024"]
[Site "Bhubaneswar"]
[Date "2024.02.03"]
[Round "9.18"]
[White "Aakash Sharadchandra, Dalvi"]
[Black "Dhrupad Kashyap"]
[Result "1-0"]
[ECO "E23"]
[WhiteElo "2180"]
[BlackElo "2058"]
[Annotator "ChessBase"]
[PlyCount "216"]
[EventDate "2024.02.01"]
[EventType "swiss"]
[EventCountry "IND"]
[SourceTitle "playchess.com"]
[Source "ChessBase"]
[SourceQuality "1"]
[TimeControl "5400+30"]

1. d4 {[%emt 0:02:12]} Nf6 {[%emt 0:00:15]} 2. c4 {[%emt 0:00:08]} e6 {[%emt 0:00:03]} 3. Nc3 {[%emt 0:00:06]} Bb4 {[%emt 0:00:04]} 4. Qb3 {[%emt 0:00:53]} c5 {[%emt 0:01:05]} 5. dxc5 {[%emt 0:00:06]} Nc6 {[%emt 0:00:04]} 6. Nf3 {[%emt 0:00:11]} Ne4 {[%emt 0:00:24]} 7. Bd2 {[%emt 0:00:49]} Nxd2 {[%emt 0:00:46]} 8. Nxd2 {[%emt 0:00:02]} Bxc5 {[%emt 0:00:04]} 9. g3 {[%emt 0:01:52]} O-O {[%emt 0:02:57]} 10. Bg2 {[%emt 0:00:08]} f5 {[%emt 0:01:39]} 11. e3 {[%emt 0:02:34]} b6 {[%emt 0:01:57]} 12. O-O {[%emt 0:00:25]} Bb7 {[%emt 0:00:54]} 13. Rfd1 {[%emt 0:14:13]} Qc8 {[%emt 0:06:01]} 14. Ne2 {[%emt 0:04:45]} Ne5 {[%emt 0:04:59]} 15. Bxb7 {[%emt 0:00:20]} Qxb7 {[%emt 0:00:03]} 16. Nf4 {[%emt 0:00:24]} Ng4 {[%emt 0:09:38]} 17. h3 {[%emt 0:02:34]} Ne5 {[%emt 0:16:24]} 18. Nd3 {[%emt 0:02:07]} Nxd3 {[%emt 0:04:42]} 19. Qxd3 {[%emt 0:00:03]} Rad8 {[%emt 0:00:06]} 20. Rac1 {[%emt 0:03:21]} Rf6 {[%emt 0:04:59]} 21. Qe2 {[%emt 0:10:43]} e5 {[%emt 0:02:03]} 22. Qf3 {[%emt 0:06:15]} e4 {[%emt 0:07:06]} 23. Qe2 {[%emt 0:00:12]} Qa6 {[%emt 0:35:47]} 24. a3 {[%emt 0:11:05]} d5 {[%emt 0:00:00]} 25. Nb3 {[%emt 0:00:13]} Rfd6 {[%emt 0:01:00]} 26. Qh5 g6 {[%emt 0:00:00]} 27. Qg5 {[%emt 0:08:28]} d4 {[%emt 0:00:00]} 28. exd4 {[%emt 0:00:59]} Bxd4 {[%emt 0:00:00]} 29. Nxd4 {[%emt 0:00:08]} Rxd4 {[%emt 0:00:00]} 30. Qxd8+ {[%emt 0:01:57]} Rxd8 {[%emt 0:00:00]} 31. Rxd8+ {[%emt 0:00:08]} Kg7 {[%emt 0:03:00]} 32. Rc3 Qb7 {[%emt 0:00:00]} 33. b4 {[%emt 0:00:00]} Qc7 {[%emt 0:00:00]} 34. Rd5 {[%emt 0:07:35]} Kh6 {[%emt 0:00:00]} 35. Rd2 {[%emt 0:03:49]} f4 {[%emt 0:00:00]} 36. gxf4 {[%emt 0:00:46]} Qxf4 {[%emt 0:00:00]} 37. Rdc2 {[%emt 0:19:29]} Qg5+ 38. Kf1 Qf5 39. Re3 {[%emt 0:00:00]} a5 {[%emt 0:00:00]} 40. c5 {[%emt 0:00:00]} axb4 {[%emt 0:00:00]} 41. axb4 {[%emt 0:00:00]} Qd7 {[%emt 0:00:00]} 42. Rcc3 {[%emt 0:00:00]} bxc5 {[%emt 0:00:00]} 43. bxc5 {[%emt 0:00:00]} Qc6 {[%emt 0:00:00]} 44. Rc4 {[%emt 0:00:00]} Kg5 {[%emt 0:00:00]} 45. Rexe4 {[%emt 0:00:00]} Kh6 {[%emt 0:00:00]} 46. Kg1 {[%emt 0:00:00]} Kg7 {[%emt 0:00:00]} 47. Re3 {[%emt 0:00:00]} Kh6 {[%emt 0:00:00]} 48. Rcc3 {[%emt 0:00:00]} Kh5 {[%emt 0:00:00]} 49. Red3 {[%emt 0:00:00]} Kh6 {[%emt 0:00:00]} 50. Rd6 {[%emt 0:00:00]} Qe4 {[%emt 0:00:00]} 51. Rd1 {[%emt 0:00:00]} Qc6 {[%emt 0:00:00]} 52. Rcc1 {[%emt 0:00:00]} Kh5 {[%emt 0:00:00]} 53. Rd6 {[%emt 0:00:00]} Qb5 {[%emt 0:00:00]} 54. Kg2 {[%emt 0:02:46]} h6 {[%emt 0:00:14]} 55. Rc3 {[%emt 0:00:26]} Qb4 {[%emt 0:00:19]} 56. Rd5+ {[%emt 0:00:46]} g5 {[%emt 0:00:06]} 57. Rdd3 {[%emt 0:00:29]} Qe4+ {[%emt 0:00:16]} 58. Kf1 {[%emt 0:00:03]} Qh1+ {[%emt 0:00:08]} 59. Ke2 {[%emt 0:00:04]} Qc6 {[%emt 0:00:02]} 60. Rd4 {[%emt 0:00:47]} Qf6 {[%emt 0:00:21]} 61. Rcc4 {[%emt 0:00:15]} Qe6+ {[%emt 0:00:34]} 62. Re4 {[%emt 0:00:09]} Qc6 {[%emt 0:00:51]} 63. Kf3 {[%emt 0:00:19]} Kg6 {[%emt 0:00:25]} 64. Kg2 {[%emt 0:00:32]} Kf5 {[%emt 0:00:13]} 65. Kg1 {[%emt 0:00:05]} Kf6 {[%emt 0:01:18]} 66. Re3 {[%emt 0:00:15]} Qd5 {[%emt 0:00:29]} 67. Rc1 {[%emt 0:00:14]} Qc6 {[%emt 0:00:15]} 68. Rb3 {[%emt 0:00:23]} Kg7 {[%emt 0:01:39]} 69. Rb6 {[%emt 0:02:30]} Qf3 {[%emt 0:01:16]} 70. c6 {[%emt 0:00:05]} Qxh3 {[%emt 0:00:19]} 71. Rb4 {[%emt 0:00:05]} g4 {[%emt 0:00:31]} 72. Rb2 {[%emt 0:04:05]} g3 {[%emt 0:03:02]} 73. fxg3 {[%emt 0:00:39]} Kh7 {[%emt 0:08:42]} 74. Rc3 {[%emt 0:01:06]} Qe6 {[%emt 0:00:00]} 75. Kh2 {[%emt 0:00:24]} Qe5 {[%emt 0:00:00]} 76. Rbc2 {[%emt 0:00:17]} Qh5+ {[%emt 0:00:00]} 77. Kg2 {[%emt 0:00:16]} Qd5+ {[%emt 0:00:00]} 78. Rf3 {[%emt 0:00:00]} Qe4 {[%emt 0:00:00]} 79. Rcc3 {[%emt 0:00:51]} Qe2+ {[%emt 0:00:00]} 80. Rf2 {[%emt 0:01:01]} Qe4+ {[%emt 0:00:00]} 81. Kh2 {[%emt 0:00:27]} Qe5 {[%emt 0:00:00]} 82. Rcf3 {[%emt 0:02:13]} Qh5+ {[%emt 0:00:00]} 83. Kg1 {[%emt 0:00:07]} Qc5 {[%emt 0:00:00]} 84. c7 {[%emt 0:00:17]} Qc1+ {[%emt 0:00:00]} 85. Kh2 {[%emt 0:00:03]} Kg6 {[%emt 0:00:00]} 86. Rf7 {[%emt 0:00:14]} h5 {[%emt 0:00:00]} 87. Rd7 {[%emt 0:00:35]} h4 {[%emt 0:00:00]} 88. gxh4 {[%emt 0:00:27]} Kh5 {[%emt 0:00:00]} 89. Rg7 {[%emt 0:01:47]} Qc6 {[%emt 0:00:00]} 90. Rd2 {[%emt 0:00:54]} Qc4 {[%emt 0:00:00]} 91. Rgd7 {[%emt 0:00:32]} Qxh4+ {[%emt 0:00:00]} 92. Kg2 {[%emt 0:00:03]} Qg4+ {[%emt 0:00:00]} 93. Kh1 {[%emt 0:00:54]} Qf3+ {[%emt 0:00:00]} 94. Kg1 {[%emt 0:00:32]} Qg3+ {[%emt 0:00:00]} 95. Kf1 {[%emt 0:00:08]} Qf3+ {[%emt 0:00:00]} 96. Ke1 {[%emt 0:01:25]} Qh1+ 97. Kf2 Qh2+ 98. Ke3 Qg3+ 99. Kd4 Qf4+ 100. Kc5 Qe3+ 101. R2d4 Qc3+ 102. Kb6 Qb3+ 103. Ka7 Qa3+ 104. Kb7 Qb3+ 105. Kc6 Qc2+ 106. Kd6 {[%emt 0:04:01]} Qg6+ {[%emt 0:06:48]} 107. Kc5 {[%emt 0:01:29]} Qc2+ 108. Rc4 {[%emt 0:00:00]} Qf5+ {[%emt 0:00:00]} 1-0